bitfinex/quotes_ETHUSD_20251023
["timestamp","ask_amount","ask_price","bid_price","bid_amount"]
[1761238974422,0.4613,3895.7,3895.0,2.56737819]
[1761238974625,0.4613,3895.7,3894.9,3.827]
[1761238975129,0.4613,3895.7,3894.9,6.39444512]
[1761238975294,0.4613,3895.7,3894.9,3.827]
[1761238975923,0.4613,3895.7,3895.0,1.5552]
[1761238976319,0.4613,3895.7,3895.0,4.1225816]
[1761238976896,0.2304,3895.8,3895.1,0.1581]
[1761238977097,0.2304,3895.8,3895.3,2.567182]
[1761238977323,0.2304,3895.8,3895.4,3.812]
[1761238977521,0.6917,3895.8,3895.4,3.812]
[1761238978504,0.6917,3895.8,3895.4,6.37912602]
[1761238978716,0.2215,3896.2,3895.4,3.812]
[1761238978922,0.2215,3896.5,3895.9,2.56679534]
[1761238979105,0.001,3897.0,3896.0,6.37071896]
[1761238979446,0.4417,3896.9,3896.1,3.803]
[1761238980039,0.4417,3896.9,3896.1,6.36964735]
[1761238980246,0.4417,3896.9,3896.1,3.803]
[1761238980448,9.47907865,3896.6,3894.2,2.96737414]
[1761238980631,9.47907865,3896.6,3894.5,2.56772371]
[1761238980632,0.54913348,3896.5,3894.5,2.56772371]
[1761238980808,0.54913348,3896.5,3894.0,0.1621]
[1761238980809,3.798,3896.4,3894.0,0.1621]
[1761238981124,0.68497268,3896.0,3894.0,0.1621]
[1761238981337,0.54913348,3895.9,3894.1,3.158]
[1761238981533,0.128,3894.9,3894.4,0.128]
[1761238982011,0.2215,3894.5,3894.4,0.128]
[1761238982429,0.4417,3894.8,3894.4,0.128]
[1761238982624,0.4417,3894.8,3894.4,3.922]
[1761238983238,0.4417,3894.8,3894.3,0.002]
[1761238984467,0.99226671,3894.8,3894.3,0.002]
[1761238984756,0.55056671,3894.7,3894.3,0.002]
[1761238985062,0.99226671,3894.7,3894.3,0.002]
[1761238985218,0.71829065,3894.6,3894.3,0.002]
[1761238985419,2.56778964,3894.4,3894.3,0.002]
[1761238985725,0.55056671,3894.4,3894.3,0.002]
[1761238985942,0.99226671,3894.4,3894.3,0.002]
[1761238986344,0.4417,3894.4,3894.3,0.002]
[1761238988760,0.2215,3895.0,3894.3,0.002]
[1761238989055,0.4417,3895.7,3894.4,2.56773274]
[1761238989223,0.4417,3895.7,3894.3,0.002]
[1761238989224,0.99206625,3895.7,3894.5,2.56772098]
[1761238989424,0.55036625,3895.6,3894.4,2.56777976]
[1761238989633,0.55036625,3895.6,3894.6,2.56760229]
[1761238989860,0.4417,3895.7,3894.8,2.56750455]
[1761238990175,0.4417,3895.7,3894.4,6.33477513]
[1761238990368,0.4417,3895.7,3894.5,2.56771266]
[1761238990564,0.4417,3895.7,3894.4,6.33478908]
[1761238990771,0.4417,3895.7,3894.5,2.56770935]
[1761238990966,0.4417,3895.7,3894.4,3.767]
[1761238991166,0.4417,3895.7,3894.7,2.56758556]
[1761238991373,0.99205917,3895.7,3894.4,3.767]
[1761238991672,0.99205917,3895.7,3894.3,0.002]
[1761238991673,3.39423695,3895.6,3894.3,3.764]
[1761238991851,0.55035917,3895.5,3894.3,3.764]
[1761238992179,0.99205917,3895.5,3894.3,6.33185472]
[1761238992581,0.4417,3895.4,3894.3,3.764]
[1761238992950,0.4417,3895.4,3894.3,6.33184208]
[1761238993146,0.4417,3895.4,3894.3,0.002]
[1761238993348,0.128,3894.8,3894.3,0.002]
[1761238993796,0.128,3894.8,3894.3,2.56985373]
[1761238994103,0.128,3894.8,3894.3,0.002]
[1761238994394,0.128,3895.2,3894.6,0.128]
[1761238994871,0.128,3895.2,3894.7,2.56759185]
[1761238995045,0.128,3895.2,3894.4,0.4602]
[1761238995046,0.55052033,3895.8,3894.4,0.4602]
[1761238995251,0.128,3895.4,3894.8,0.128]
[1761238995451,0.128,3895.4,3894.9,3.745]
[1761238996097,0.128,3895.4,3894.8,3.87]
[1761238997057,0.128,3895.4,3894.8,0.128]
[1761238997304,0.3495,3894.9,3894.3,0.002]
[1761238997511,0.2215,3894.9,3894.3,0.002]
[1761238997667,0.128,3894.4,3894.3,0.002]
[1761238998166,0.128,3895.3,3894.3,3.15800037]
[1761238998361,0.128,3895.3,3894.8,0.128]
[1761238998582,0.128,3895.3,3894.7,0.128]
[1761238999096,0.4417,3895.4,3894.3,0.002]
[1761238999293,0.128,3894.9,3894.4,0.128]
[1761238999467,0.128,3894.9,3894.4,2.69578747]
[1761239000093,0.55171642,3895.7,3894.5,2.567668]
[1761239000294,0.128,3895.1,3894.5,2.567668]
[1761239000494,0.128,3895.1,3894.5,2.56771143]
[1761239001016,0.128,3895.1,3894.5,2.56772371]
[1761239001363,0.128,3895.1,3894.7,2.56753903]
[1761239001566,0.55171642,3895.6,3894.7,2.56758033]
[1761239001768,0.55171642,3895.8,3894.7,2.56758033]
[1761239001998,0.55171642,3895.7,3894.8,2.56750355]
[1761239002293,0.55171642,3895.6,3894.8,2.56750355]
[1761239002497,0.55171642,3895.8,3894.8,2.56750355]
[1761239002679,0.55171642,3895.7,3894.9,2.56744632]
[1761239003000,0.23284164,3895.6,3895.0,2.56738558]
[1761239003171,0.23284164,3895.6,3894.9,2.56743665]
[1761239003796,0.23284164,3895.6,3894.7,2.56752973]
[1761239003969,0.78455806,3895.6,3894.6,2.56764175]
[1761239004293,0.55171642,3895.5,3894.6,2.56764175]
[1761239004507,0.55171642,3895.5,3894.8,2.56746519]
[1761239004682,0.23284164,3895.6,3894.9,2.56745117]
[1761239005094,0.78455806,3895.6,3894.9,2.56745117]
[1761239005296,0.55171642,3895.5,3895.0,2.56738585]
[1761239005507,0.55171642,3895.5,3894.5,0.4602]
[1761239005710,0.23284164,3895.6,3894.5,0.4602]
[1761239006009,0.23284164,3895.6,3895.1,2.56732267]
[1761239006311,0.55171642,3895.8,3895.1,2.56731887]
[1761239007012,0.77321642,3895.9,3895.1,2.56731887]
[1761239007192,0.55171642,3895.8,3895.0,0.1581]
[1761239007392,0.77321642,3895.9,3895.0,2.72548583]
[1761239008309,0.77321642,3895.9,3895.1,2.56731912]
[1761239008488,0.77321642,3895.9,3895.1,2.56732818]
[1761239009288,0.55171642,3895.8,3895.2,2.56725505]
[1761239009984,0.77321642,3895.9,3895.1,2.56731109]
[1761239010584,0.77321642,3895.9,3895.2,2.56725162]
[1761239010783,0.55171642,3896.0,3895.2,0.89928105]
[1761239010981,0.001,3896.1,3895.8,2.56681654]
[1761239011384,0.001,3896.1,3895.9,2.56679918]
[1761239011717,0.001,3896.1,3895.9,0.128]
[1761239011916,0.001,3896.1,3895.9,2.69475713]
[1761239012221,0.001,3896.1,3896.0,2.56673511]
[1761239012511,0.001,3896.1,3896.0,3.90839506]
[1761239012700,0.001,3896.1,3896.0,4.03639506]
[1761239013219,0.001,3896.1,3896.0,4.54327506]
[1761239014112,0.001,3896.1,3896.0,0.128]
[1761239014316,0.001,3896.1,3895.9,3.7]
[1761239015394,0.001,3896.1,3895.9,6.26678869]
[1761239015599,0.001,3896.1,3895.9,3.7]
[1761239016100,0.4549,3896.0,3894.6,2.56764696]
[1761239016297,0.128,3895.5,3894.8,2.69551579]
[1761239016516,0.128,3895.5,3894.8,0.128]
[1761239016722,0.001,3896.1,3896.0,2.56673511]
[1761239017017,0.001,3896.1,3896.0,8.77331511]
[1761239022793,0.001,3896.9,3896.4,3.07335161]
[1761239023038,0.001,3896.9,3896.4,8.32655161]
[1761239023326,1e-08,3897.0,3896.9,3.07302231]
[1761239023563,1e-08,3897.0,3896.9,8.32622231]
[1761239023830,1e-08,3897.0,3896.9,9.27019142]
[1761239024005,1e-08,3897.0,3896.9,9.37287387]
[1761239024393,0.001,3897.4,3897.3,3.07275894]
[1761239024593,0.001,3897.4,3897.3,9.54069792]
[1761239026835,0.001,3897.4,3897.3,9.66869792]
[1761239027938,0.001,3897.4,3897.3,5.97069792]
[1761239028256,0.001,3897.4,3897.3,9.66769792]
[1761239030053,0.001,3897.4,3897.3,9.53969792]
[1761239031367,0.001,3897.4,3897.3,9.53869792]
[1761239034158,0.001,3897.4,3897.3,9.64136587]
[1761239035081,0.2139,3897.0,3894.4,3.14277726]
[1761239035283,4.12298964,3894.4,3893.9,0.002]
[1761239035452,7.32786964,3894.4,3893.9,0.002]
[1761239035788,7.32786964,3894.4,3893.5,0.002]
[1761239035789,2.56794747,3894.2,3893.5,0.002]
[1761239035988,1.37172233,3893.7,3893.5,0.002]
[1761239036136,0.54867071,3893.6,3893.5,0.002]
[1761239036338,1.46196198,3893.6,3893.5,0.002]
[1761239036542,2.53288288,3893.6,3893.5,0.002]
[1761239036864,1.98421217,3893.5,3892.9,0.02]
[1761239037055,0.68504645,3893.3,3892.6,3.164]
[1761239037257,0.68504645,3893.0,3892.6,3.164]
[1761239037462,0.54867071,3892.9,3892.6,3.164]
[1761239037773,0.54867071,3892.9,3892.5,0.002]
[1761239037774,0.64767071,3892.8,3892.5,0.002]
[1761239037975,1.23371716,3892.7,3892.5,0.002]
[1761239038160,0.54867071,3892.6,3892.5,0.002]
[1761239039546,0.54867071,3892.6,3892.5,3.20186199]
[1761239039792,0.68504645,3893.1,3892.5,3.20183767]
[1761239039949,0.1139,3893.3,3892.9,2.56872065]
[1761239039950,0.54635538,3893.0,3892.9,2.56872065]
[1761239040144,0.54635538,3893.0,3892.9,6.45152065]
[1761239040566,0.54635538,3893.0,3892.9,3.8828]
[1761239041176,0.54635538,3893.0,3892.9,7.09574058]
[1761239041375,0.1288,3893.6,3892.9,3.34272736]
[1761239041688,0.75866063,3893.5,3892.5,0.002]
[1761239041876,0.67456063,3893.4,3892.8,0.1288]
[1761239042055,0.54576063,3893.3,3892.8,0.1288]
[1761239042250,0.54576063,3893.2,3892.8,0.1288]
[1761239042456,0.54576063,3893.1,3892.9,3.749]
[1761239042679,0.1288,3893.4,3892.9,3.749]
[1761239042882,0.54533143,3893.3,3893.0,2.568654]
[1761239043177,0.54533143,3893.2,3893.1,2.56864709]
[1761239043379,0.1288,3893.6,3893.5,2.5683832]
[1761239043582,0.1288,3893.6,3893.5,3.743]
[1761239043784,0.2281,3893.6,3893.4,3.743]
[1761239043982,0.1288,3893.6,3893.4,3.743]
[1761239044977,0.1288,3893.6,3893.4,6.31143793]
[1761239045371,0.1288,3893.6,3893.4,3.743]
[1761239045881,0.1288,3893.6,3893.5,2.5683832]
[1761239046066,0.1288,3893.6,3893.4,6.31143444]
[1761239046457,0.1288,3893.6,3893.5,2.5683832]
[1761239047187,0.54413696,3894.2,3894.1,2.56798746]
[1761239047374,1.37172233,3895.2,3894.1,2.56798746]
[1761239047375,0.68504645,3895.2,3894.2,1.5552]
[1761239047552,0.54376355,3895.4,3894.4,2.56774345]
[1761239047758,0.54376355,3895.3,3894.5,3.741]
[1761239047975,0.099,3895.3,3894.7,2.56754175]
[1761239048192,0.099,3895.2,3894.5,3.741]
[1761239048365,0.1138,3894.6,3893.6,0.2161]
[1761239048567,0.1138,3894.6,3893.7,3.739]
[1761239048771,0.1138,3894.6,3894.3,2.56784843]
[1761239048971,0.1138,3894.6,3894.4,2.56778724]
[1761239049498,0.2129,3894.6,3893.7,3.739]
[1761239049660,0.1138,3894.6,3894.5,2.56772371]
[1761239049866,0.1138,3894.6,3894.4,2.56777573]
[1761239050197,0.1138,3894.6,3894.4,3.738]
[1761239050399,0.0991,3894.5,3894.2,3.733]
[1761239050982,0.1138,3894.6,3894.2,3.729]
[1761239051190,0.1136,3894.9,3894.8,2.56752593]
[1761239051387,0.1136,3894.9,3894.2,3.729]
[1761239051388,0.1136,3894.9,3894.6,2.56759289]
[1761239051594,0.1136,3894.9,3894.2,3.729]
[1761239051791,0.1136,3894.9,3894.7,2.56757076]
[1761239051978,0.1136,3894.9,3894.6,2.56764906]
[1761239052185,0.1136,3894.9,3894.7,2.56757025]
[1761239053621,0.2129,3894.9,3894.7,2.56757025]
[1761239053975,0.1136,3894.9,3894.7,2.56757025]
[1761239054377,0.1136,3894.9,3894.2,3.729]
[1761239054701,0.1136,3894.9,3894.8,2.56752593]
[1761239055201,0.1136,3894.9,3894.0,2.56802742]
[1761239055202,0.1136,3894.9,3893.4,0.002]
[1761239055403,0.0993,3894.8,3893.4,0.002]
[1761239055613,0.54374184,3894.7,3893.9,2.56805968]
[1761239055774,0.54374184,3894.7,3893.8,2.5681748]
[1761239055978,0.64304184,3894.8,3893.8,2.5681748]
[1761239056174,0.54374184,3894.7,3893.8,2.5681748]
[1761239056402,0.54374184,3894.6,3893.8,2.5681748]
[1761239056600,0.54374184,3894.7,3893.9,0.02568119]
[1761239056772,0.1146,3894.9,3893.7,0.4361]
[1761239056773,0.1146,3894.9,3894.3,2.56780544]
[1761239056973,0.1146,3894.9,3894.1,2.56798746]
[1761239057388,0.2426,3894.9,3894.4,2.69576694]
[1761239057593,0.78634184,3894.9,3894.5,2.56770484]
[1761239057900,0.2426,3894.9,3894.4,0.128]
[1761239058101,0.64444869,3894.8,3894.4,3.715]
[1761239058332,0.54484869,3894.7,3894.4,3.715]
[1761239058493,0.0996,3894.8,3894.4,3.715]
[1761239058695,0.001,3894.9,3894.8,2.56752593]
[1761239059391,0.001,3894.9,3894.8,6.27452593]
[1761239059616,0.001,3894.9,3894.8,3.707]
[1761239059817,0.001,3894.9,3894.8,6.27452593]
[1761239060005,0.001,3894.9,3894.8,3.703]
[1761239060333,0.1144,3894.9,3894.7,3.703]
[1761239061694,0.001,3894.9,3894.8,2.56752593]
[1761239062098,0.001,3894.9,3894.7,2.9378533]
[1761239062293,0.001,3894.9,3894.7,0.3703]
[1761239062511,0.001,3894.9,3894.6,3.704]
[1761239062999,0.001,3894.9,3894.8,2.56752593]
[1761239063234,0.001,3894.9,3894.5,2.56772151]
[1761239063536,0.001,3894.9,3894.8,6.26752593]
[1761239063828,0.54982716,3894.9,3894.8,6.26752593]
[1761239063992,0.54982716,3894.9,3894.8,6.70362593]
[1761239064194,0.54982716,3894.9,3894.8,6.26752593]
[1761239064512,1.23487361,3894.9,3894.8,6.26752593]
[1761239065047,0.54982716,3894.9,3894.8,3.7]
[1761239065264,0.66392716,3894.9,3894.8,3.7]
[1761239065563,0.66392716,3894.9,3894.7,3.7]
[1761239065719,0.54882716,3894.8,3894.7,3.7]
[1761239065920,1.46714221,3894.8,3894.7,3.7]
[1761239066121,0.64802716,3894.8,3894.4,3.7]
[1761239066347,2.01974949,3894.7,3894.4,3.7]
[1761239066557,0.54882716,3894.6,3894.1,3.7]
[1761239066760,0.91859005,3894.4,3894.1,3.7]
[1761239067061,1.46741721,3894.3,3894.1,3.7]
[1761239067253,1.23787598,3894.2,3894.1,3.7]
[1761239067559,1.23787598,3894.2,3893.4,0.002]
[1761239067715,0.6892067,3894.0,3893.7,3.7]
[1761239067919,0.54882716,3893.9,3893.7,3.7]
[1761239068151,1.36953386,3893.8,3893.5,0.1288]
[1761239068357,0.54882716,3893.7,3893.6,6.26831723]
[1761239068720,0.54882716,3893.7,3893.6,3.8288]
[1761239069053,0.54882716,3893.7,3893.5,2.56832469]
[1761239069255,0.54882716,3893.6,3893.5,2.5683219]
[1761239069425,0.54882716,3893.6,3893.5,3.95050534]
[1761239069627,0.54882716,3893.6,3893.5,2.5683219]
[1761239070661,0.54882716,3893.6,3893.5,6.2683219]
[1761239071165,0.54882716,3893.6,3893.5,6.7213219]
[1761239071749,0.54882716,3893.6,3893.5,6.2683219]
[1761239072256,0.54882716,3893.6,3893.4,0.002]
[1761239072473,0.54882716,3893.5,3893.4,0.002]
[1761239072629,0.54882716,3893.5,3893.4,5.74844917]
[1761239073334,0.54882716,3893.5,3893.4,6.20144917]
[1761239073746,0.54882716,3893.5,3893.4,6.61277792]
[1761239073976,0.54882716,3893.5,3893.4,7.11965792]
[1761239074130,1.82896311,3895.0,3893.4,7.11965792]
[1761239074131,0.6892067,3894.1,3893.4,0.41332875]
[1761239074330,1.24172677,3894.0,3893.8,2.56817233]
[1761239074539,0.6892067,3894.0,3893.9,3.7]
[1761239074768,1.2417481,3894.0,3893.9,3.7]
[1761239074927,1.2417481,3894.0,3893.9,6.72111936]
[1761239075132,0.5525414,3894.0,3893.9,6.72111936]
[1761239075934,0.5525414,3894.0,3893.9,3.7]
[1761239076259,0.5525414,3894.0,3893.9,6.26811936]
[1761239078934,0.5525414,3894.0,3893.9,6.39691936]
[1761239079544,0.5525414,3894.0,3893.9,6.84991936]
[1761239079862,0.5525414,3894.0,3893.9,6.39691936]
[1761239082075,0.5525414,3894.0,3893.9,3.8288]
[1761239082948,0.5525414,3894.0,3893.9,3.8278]
[1761239083284,0.5525414,3894.0,3893.7,3.699]
[1761239083479,0.128,3894.1,3893.7,3.699]
[1761239083480,0.1317,3893.8,3893.7,3.699]
[1761239083778,0.6842414,3893.8,3893.7,3.699]
[1761239084349,0.6842414,3893.8,3893.5,0.1288]
[1761239084565,0.5525414,3893.7,3893.6,3.698]
[1761239084780,0.5525414,3893.7,3893.5,0.1288]
[1761239084977,0.55272237,3893.6,3893.5,2.69715656]
[1761239085278,0.55272237,3893.6,3893.5,3.698]
[1761239085876,0.55272237,3893.6,3893.4,0.002]
[1761239086070,0.55272237,3893.5,3893.4,2.57043365]
[1761239086377,0.55272237,3893.5,3893.4,3.7]
[1761239086557,0.55272237,3893.5,3893.4,6.26844917]
[1761239087150,0.55272237,3893.5,3893.4,3.7]
[1761239087354,0.55272237,3893.5,3893.4,6.26844917]
[1761239088368,0.1288,3893.8,3893.6,2.56830943]
[1761239088570,0.55246338,3893.7,3893.5,2.56835838]
[1761239088878,0.55246338,3893.6,3893.5,2.56835838]
[1761239089089,0.55246338,3893.6,3893.4,3.7]
[1761239089285,0.55246338,3893.5,3893.4,3.7]
[1761239089589,0.1288,3893.8,3893.4,3.7]
[1761239089763,0.55253498,3893.7,3893.4,3.7]
[1761239089951,0.55253498,3893.6,3893.4,3.7]
[1761239090153,0.1288,3893.8,3893.4,3.7]
[1761239090154,0.1288,3893.8,3893.4,6.26743382]
[1761239090378,0.55254849,3893.7,3893.4,3.699]
[1761239090583,0.1288,3893.8,3893.4,3.699]
[1761239090772,0.69097714,3894.3,3893.6,0.1288]
[1761239091081,0.55252129,3894.2,3894.1,2.56798746]
[1761239091380,0.001,3894.9,3894.6,2.56762422]
[1761239091581,0.001,3894.9,3894.8,2.56752593]
[1761239093257,0.001,3894.9,3894.8,3.02052593]
[1761239093657,0.001,3894.9,3894.8,2.56752593]
[1761239093898,0.001,3894.9,3893.9,0.2346]
[1761239094198,0.2309,3894.9,3894.4,1.5552]
[1761239094379,0.2309,3894.9,3894.5,3.446]
[1761239095402,0.001,3894.9,3894.5,3.446]
[1761239095554,0.001,3894.9,3894.6,2.56761752]
[1761239096165,0.001,3894.9,3894.7,2.56759127]
[1761239096989,0.1318,3894.8,3893.4,0.002]
[1761239097163,0.5527631,3894.7,3893.4,0.002]
[1761239097360,0.5527631,3894.6,3893.5,2.5683373]
[1761239097559,0.0993,3894.5,3893.5,2.5683373]
[1761239097776,0.0993,3894.5,3893.5,6.2633373]
[1761239097978,0.0993,3894.5,3893.5,3.695]
[1761239098181,0.0993,3894.5,3893.5,6.26336854]
[1761239098387,0.0993,3894.5,3893.6,2.56829288]
[1761239098957,0.1138,3893.7,3893.5,3.695]
[1761239099162,0.1138,3893.7,3893.4,0.002]
[1761239100490,0.2133,3893.7,3893.4,0.002]
[1761239101362,0.1288,3893.5,3893.4,0.002]
[1761239101781,0.2283,3893.5,3893.4,0.002]
[1761239102083,2.7966832,3893.5,3893.4,0.002]
[1761239102299,0.78108688,3893.5,3893.4,0.002]
[1761239102499,0.0995,3893.5,3893.4,0.002]
[1761239102806,0.55278688,3893.6,3893.4,0.002]
[1761239103016,0.1138,3893.7,3893.4,0.002]
[1761239103497,0.1138,3893.7,3893.5,2.56835082]
[1761239103796,0.1138,3893.7,3893.4,0.002]
[1761239103797,0.1143,3893.9,3893.4,2.57038545]
[1761239103998,0.1143,3893.9,3893.4,0.002]
[1761239105699,0.1143,3893.9,3893.4,2.57042539]
[1761239105890,0.1143,3893.9,3893.5,2.56832794]
[1761239106091,0.1143,3893.9,3893.4,2.57043293]
[1761239106316,0.1143,3893.9,3893.4,0.002]
[1761239106517,0.1143,3893.9,3893.4,2.57044363]
[1761239106695,0.1143,3893.9,3893.4,0.002]
[1761239107120,0.099,3893.8,3893.4,0.002]
[1761239107325,0.1143,3893.9,3893.4,0.002]
[1761239107494,0.001,3894.2,3893.4,0.461]
[1761239107701,0.001,3894.2,3894.1,2.56798746]
[1761239107899,0.001,3894.2,3894.1,6.49268746]
[1761239108099,0.001,3894.2,3894.1,6.95168746]
[1761239108955,0.001,3894.2,3894.1,9.45886311]
[1761239109253,0.001,3894.2,3894.1,9.96574311]
[1761239109398,0.001,3894.2,3894.1,5.76686311]
[1761239109598,0.001,3894.2,3894.1,9.45886311]
[1761239109809,0.001,3894.2,3894.1,9.96574311]
[1761239110230,0.001,3894.2,3894.1,6.27374311]
[1761239110405,0.001,3894.2,3894.1,5.76686311]
[1761239110607,0.001,3894.2,3894.1,8.50588746]
[1761239111006,0.001,3894.2,3894.1,9.01276746]
[1761239112501,0.001,3894.2,3894.1,9.14076746]
[1761239113309,0.001,3894.2,3894.1,5.44976746]
[1761239113507,0.001,3894.2,3894.1,9.13976746]
[1761239113741,0.001,3894.2,3894.1,10.31055111]
[1761239116143,0.001,3894.2,3894.1,9.80367111]
[1761239116462,0.001,3894.2,3894.1,10.31055111]
[1761239118528,0.001,3894.2,3894.1,9.13976746]
[1761239118720,0.001,3894.2,3894.1,8.17388746]
[1761239119070,0.001,3894.2,3894.1,7.93918746]
[1761239119623,0.001,3894.2,3894.1,2.69598746]
[1761239119838,0.001,3894.2,3894.1,6.38298746]
[1761239120067,0.001,3894.2,3894.1,0.128]
[1761239120355,0.001,3894.2,3894.1,3.687]
[1761239120560,0.001,3894.2,3894.1,6.25498746]
[1761239120935,0.001,3894.2,3894.1,3.687]
[1761239121953,0.001,3894.2,3893.9,2.56811259]
[1761239122173,0.001,3894.2,3894.0,2.56805307]
[1761239122348,0.001,3894.2,3894.0,3.686]
[1761239124695,0.001,3894.2,3894.1,3.25968746]
[1761239126277,0.001,3894.2,3894.1,3.28536733]
[1761239126450,0.001,3894.2,3894.1,3.25968746]
[1761239128968,0.001,3894.2,3894.1,2.80068746]
[1761239129396,0.001,3894.2,3894.1,2.56798746]
[1761239130099,0.001,3894.2,3894.1,2.79168746]
[1761239130302,0.001,3894.2,3894.1,4.14836738]
[1761239130609,0.001,3894.2,3894.1,6.21044738]
[1761239132094,0.001,3894.2,3894.1,6.33844738]
[1761239132671,0.001,3894.2,3894.1,9.11586746]
[1761239132869,0.001,3894.2,3894.1,8.60898746]
[1761239133126,0.001,3894.2,3894.1,6.24998746]
[1761239133326,0.129,3894.2,3893.5,3.681]
[1761239133607,0.129,3894.2,3893.5,3.8098]
[1761239133776,0.129,3894.2,3893.6,2.56831026]
[1761239134216,0.129,3894.2,3893.5,3.8098]
[1761239134421,0.001,3894.2,3893.6,2.56831723]
[1761239134712,0.001,3894.2,3894.1,2.56798746]
[1761239134879,0.001,3894.2,3894.1,6.37698746]
[1761239135323,0.001,3894.2,3893.8,2.56813872]
[1761239135483,0.129,3894.2,3893.4,0.002]
[1761239135807,0.001,3894.2,3894.0,2.56799967]
[1761239136106,0.001,3894.2,3893.9,2.56806742]
[1761239136342,0.001,3894.2,3893.7,2.69698947]
[1761239136621,0.212,3894.1,3893.5,3.68]
[1761239136792,0.1288,3893.9,3893.6,2.56826533]
[1761239137311,0.1288,3893.9,3893.5,3.68]
[1761239137498,0.1141,3893.6,3893.5,2.5683832]
[1761239137673,0.1288,3893.8,3893.5,2.5683832]
[1761239137874,0.1288,3893.8,3893.6,2.56831054]
[1761239138909,0.1288,3893.8,3893.4,6.25038561]
[1761239139100,0.1288,3893.8,3893.6,2.56827978]
[1761239139275,0.001,3894.2,3894.1,2.56798746]
[1761239139614,0.129,3894.2,3894.0,2.56804419]
[1761239139809,0.129,3894.2,3893.7,6.24718878]
[1761239139989,0.2283,3894.2,3893.7,3.679]
[1761239140217,0.2283,3894.2,3893.9,2.56811233]
[1761239140423,0.2283,3894.2,3893.8,2.56816395]
[1761239140633,0.129,3894.2,3894.1,2.56798746]
[1761239140952,0.001,3894.2,3894.1,6.47068746]
[1761239141303,0.001,3894.2,3894.1,8.02588746]
[1761239141612,0.001,3894.2,3894.1,10.10235802]
[1761239145947,0.001,3894.2,3894.1,10.09835802]
[1761239151310,0.001,3894.2,3894.1,5.24067802]
[1761239151512,0.001,3894.2,3894.1,9.36577802]
[1761239151712,0.001,3894.2,3894.1,4.12318746]
[1761239151954,0.001,3894.2,3894.1,7.79518746]
[1761239152916,0.001,3894.2,3894.1,4.12318746]
[1761239153119,0.001,3894.2,3894.1,7.79518746]
[1761239153846,0.001,3894.2,3894.1,7.79418746]
[1761239154215,0.001,3894.2,3894.1,4.12318746]
[1761239154551,0.001,3894.2,3894.1,7.79418746]
[1761239154918,0.001,3894.2,3894.1,8.46998746]
[1761239155123,0.001,3894.2,3894.1,9.57378987]
[1761239156354,0.001,3894.2,3894.1,9.12168987]
[1761239156554,0.001,3894.2,3894.1,8.01788746]
[1761239158125,0.001,3894.2,3893.7,0.40688]
[1761239158329,0.001,3894.2,3892.5,0.002]
[1761239158330,9.37150316,3893.9,3892.4,1.36660038]
[1761239158566,9.37150316,3893.9,3891.2,0.2237]
[1761239158567,1.5552,3893.8,3891.5,1.36660038]
[1761239158732,1.5552,3893.8,3891.6,2.909]
[1761239158733,0.69070209,3893.4,3891.6,2.909]
[1761239159047,1.47109969,3893.7,3891.5,2.87]
[1761239159048,3.25948089,3893.0,3891.5,2.87]
[1761239159246,3.25948089,3893.0,3890.9,0.2246]
[1761239159247,2.56897408,3892.7,3891.6,2.87]
[1761239159424,3.12149509,3892.6,3891.6,3.668]
[1761239159757,3.12077604,3892.5,3891.0,2.56998968]
[1761239159923,3.25947341,3893.0,3891.1,3.668]
[1761239160126,2.56896976,3892.7,3891.2,2.56987842]
[1761239160323,0.1965,3892.9,3891.3,0.02569835]
[1761239160555,0.1965,3892.9,3891.4,0.50688]
[1761239160756,0.1965,3892.9,3891.8,0.50688]
[1761239160943,0.1965,3892.9,3892.3,2.56915219]
[1761239161122,0.1965,3892.9,3892.4,6.23609113]
[1761239161324,0.099,3892.8,3892.5,3.667]
[1761239161555,0.099,3892.8,3892.0,2.56933752]
[1761239161754,0.2278,3892.8,3892.3,0.1288]
[1761239162126,0.099,3892.7,3892.1,6.23630071]
[1761239162328,0.1965,3892.9,3892.1,3.667]
[1761239162553,0.1965,3892.9,3892.4,2.56908458]
[1761239162554,0.1288,3892.8,3892.4,2.56908458]
[1761239163566,2.56819107,3893.8,3892.4,2.56908458]
[1761239163567,0.1288,3893.6,3892.7,0.50688]
[1761239163766,0.2935,3894.1,3893.4,0.1288]
[1761239163988,0.001,3894.2,3893.4,0.50688]
[1761239164151,0.001,3894.2,3894.1,2.56798746]
[1761239165060,0.001,3894.2,3893.6,3.666]
[1761239165448,0.001,3894.2,3893.6,6.23430119]
[1761239165774,0.001,3894.2,3893.6,3.666]
[1761239165976,0.001,3894.2,3892.4,1.34931195]
[1761239165977,0.1009,3894.1,3892.4,1.34931195]
[1761239166271,0.1009,3894.1,3893.3,2.5684971]
[1761239166462,0.1009,3894.1,3893.3,2.5]
[1761239166971,0.1009,3894.1,3893.2,2.56855625]
[1761239167171,0.001,3894.6,3893.2,2.56855625]
[1761239167172,0.001,3894.6,3894.0,2.79261358]
[1761239167383,0.001,3894.6,3894.5,4.62980371]
[1761239167541,0.001,3894.6,3894.5,2.30064258]
[1761239167750,0.001,3894.6,3894.5,5.2202]
[1761239168075,0.001,3894.6,3894.5,5.6761]
[1761239168472,0.001,3894.6,3894.5,5.2202]
[1761239168848,0.001,3894.6,3894.5,5.6761]
[1761239170751,0.001,3894.6,3894.5,6.18298]
[1761239170951,0.001,3894.6,3894.5,7.31483687]
[1761239173678,0.001,3894.6,3894.5,6.80795687]
[1761239175081,0.001,3894.6,3894.5,6.93595687]
[1761239175479,0.001,3894.6,3894.5,9.50368058]